[Event "January 9 Early 2024"]
[Site "https://www.chess.com"]
[Date "2024.01.11"]
[Round "2"]
[White "Seo, Jung Min"]
[Black "Pourkashiyan, Atousa"]
[Result "1-0"]
[Board "65"]
[TimeControl "180+1"]
[WhiteFideId "1734687"]
[BlackFideId "12502014"]
[WhiteElo "2859"]
[BlackElo "2481"]
[WhiteTeam "SWE"]
[BlackTeam "USA"]
[WhiteClock "0:01:23"]
[BlackClock "0:00:11"]

1. d4 {[%clk 0:03:00]}  Nf6 {[%clk 0:02:56]} 2. c4 {[%clk 0:03:01]}  e6 {[%clk 0:02:56]} 3. Nc3 {[%clk 0:03:01]}  Bb4 {[%clk 0:02:55]} 4. f3 {[%clk 0:03:01]}  d5 {[%clk 0:02:53]} 5. a3 {[%clk 0:03:01]}  Bxc3+ {[%clk 0:02:53]} 6. bxc3 {[%clk 0:03:01]}  O-O {[%clk 0:02:53]} 7. cxd5 {[%clk 0:02:57]}  exd5 {[%clk 0:02:53]} 8. e3 {[%clk 0:02:57]}  c5 {[%clk 0:02:53]} 9. Bd3 {[%clk 0:02:54]}  b6 {[%clk 0:02:53]} 10. Ne2 {[%clk 0:02:52]}  Ba6 {[%clk 0:02:53]} 11. O-O {[%clk 0:02:52]}  Bxd3 {[%clk 0:02:52]} 12. Qxd3 {[%clk 0:02:53]}  Nc6 {[%clk 0:02:51]} 13. a4 {[%clk 0:02:53]}  Na5 {[%clk 0:02:50]} 14. Ng3 {[%clk 0:02:51]}  Re8 {[%clk 0:02:50]} 15. Rb1 {[%clk 0:02:46]}  Rc8 {[%clk 0:02:49]} 16. e4 {[%clk 0:02:42]}  cxd4 {[%clk 0:02:23]} 17. cxd4 {[%clk 0:02:43]}  Rc4 {[%clk 0:02:17]} 18. e5 {[%clk 0:02:38]}  Nd7 {[%clk 0:02:15]} 19. Nf5 {[%clk 0:02:20]}  Rxa4 {[%clk 0:01:47]} 20. Qb5 {[%clk 0:02:16]}  Ra2 {[%clk 0:01:42]} 21. Qxd5 {[%clk 0:02:12]}  Re2 {[%clk 0:01:39]} 22. Nd6 {[%clk 0:02:06]}  Re7 {[%clk 0:01:24]} 23. Bg5 {[%clk 0:02:01]}  Nf8 {[%clk 0:01:00]} 24. Rbc1 {[%clk 0:01:50]}  h6 {[%clk 0:00:55]} 25. Bxe7 {[%clk 0:01:49]}  Qxe7 {[%clk 0:00:55]} 26. Rc8 {[%clk 0:01:46]}  Rb2 {[%clk 0:00:17]} 27. f4 {[%clk 0:01:44]}  Nb3 {[%clk 0:00:17]} 28. Re8 {[%clk 0:01:38]}  Qd7 {[%clk 0:00:17]} 29. Qa8 {[%clk 0:01:34]}  Qg4 {[%clk 0:00:13]} 30. Rxf8+ {[%clk 0:01:34]}  Kh7 {[%clk 0:00:13]} 31. Rh8+ {[%clk 0:01:29]}  Kg6 {[%clk 0:00:14]} 32. Qe4+ {[%clk 0:01:28]}  Kh5 {[%clk 0:00:11]} 33. h3 {[%clk 0:01:23]} 1-0

[Event "January 9 Early 2024"]
[Site "https://www.chess.com"]
[Date "2024.01.11"]
[Round "2"]
[White "Weetik, Vjacheslav"]
[Black "Mizzi, Jack"]
[Result "1-0"]
[Board "66"]
[TimeControl "180+1"]
[WhiteFideId "4153472"]
[BlackFideId "5602521"]
[WhiteElo "2766"]
[BlackElo "2477"]
[WhiteTeam "RUS"]
[BlackTeam "MLT"]
[WhiteClock "0:01:20"]
[BlackClock "0:00:03"]

1. d4 {[%clk 0:02:59]}  Nf6 {[%clk 0:02:59]} 2. c4 {[%clk 0:02:59]}  e6 {[%clk 0:02:59]} 3. g3 {[%clk 0:03:00]}  d5 {[%clk 0:02:59]} 4. Nf3 {[%clk 0:03:00]}  dxc4 {[%clk 0:02:58]} 5. Bg2 {[%clk 0:03:01]}  Bd7 {[%clk 0:02:59]} 6. Ne5 {[%clk 0:02:59]}  Bc6 {[%clk 0:02:58]} 7. Nxc6 {[%clk 0:02:59]}  Nxc6 {[%clk 0:02:58]} 8. e3 {[%clk 0:03:00]}  Qd7 {[%clk 0:02:58]} 9. O-O {[%clk 0:02:56]}  O-O-O {[%clk 0:02:58]} 10. Qa4 {[%clk 0:02:51]}  Nd5 {[%clk 0:02:56]} 11. Qxc4 {[%clk 0:02:43]}  h5 {[%clk 0:02:56]} 12. h3 {[%clk 0:02:30]}  h4 {[%clk 0:02:53]} 13. g4 {[%clk 0:02:30]}  f5 {[%clk 0:02:54]} 14. gxf5 {[%clk 0:02:28]}  exf5 {[%clk 0:02:53]} 15. Nc3 {[%clk 0:02:28]}  Nb6 {[%clk 0:02:41]} 16. Qb3 {[%clk 0:02:08]}  f4 {[%clk 0:02:30]} 17. d5 {[%clk 0:01:59]}  Na5 {[%clk 0:02:27]} 18. Qd1 {[%clk 0:01:52]}  Bb4 {[%clk 0:02:17]} 19. exf4 {[%clk 0:01:42]}  Bxc3 {[%clk 0:02:12]} 20. bxc3 {[%clk 0:01:43]}  Nxd5 {[%clk 0:02:12]} 21. Qf3 {[%clk 0:01:42]}  Rhf8 {[%clk 0:01:58]} 22. Rd1 {[%clk 0:01:41]}  c6 {[%clk 0:01:44]} 23. Ba3 {[%clk 0:01:27]}  Rxf4 {[%clk 0:01:40]} 24. Rxd5 {[%clk 0:01:23]}  Rxf3 {[%clk 0:00:07]} 25. Rxd7 {[%clk 0:01:22]}  Rxd7 {[%clk 0:00:04]} 26. Bxf3 {[%clk 0:01:22]}  Nc4 {[%clk 0:00:03]} 27. Bg4 {[%clk 0:01:20]}  Nxa3 {[%clk 0:00:03]} 28. Rd1 {[%clk 0:01:20]} 1-0

[Event "January 9 Early 2024"]
[Site "https://www.chess.com"]
[Date "2024.01.11"]
[Round "2"]
[White "Papasimakopoulos, Alexandros"]
[Black "Le, Tuan Minh"]
[Result "0-1"]
[Board "70"]
[TimeControl "180+1"]
[WhiteFideId "4244125"]
[BlackFideId "12401153"]
[WhiteElo "2646"]
[BlackElo "3000"]
[WhiteTeam "GRE"]
[BlackTeam "VIE"]
[WhiteClock "0:00:53"]
[BlackClock "0:00:47"]

1. d4 {[%clk 0:03:00]}  Nf6 {[%clk 0:02:47]} 2. c4 {[%clk 0:03:00]}  c6 {[%clk 0:02:44]} 3. Nc3 {[%clk 0:02:59]}  d5 {[%clk 0:02:39]} 4. cxd5 {[%clk 0:03:00]}  cxd5 {[%clk 0:02:40]} 5. Bf4 {[%clk 0:03:00]}  Nc6 {[%clk 0:02:40]} 6. e3 {[%clk 0:03:01]}  a6 {[%clk 0:02:40]} 7. Bd3 {[%clk 0:03:01]}  Bg4 {[%clk 0:02:39]} 8. Nge2 {[%clk 0:03:01]}  e6 {[%clk 0:02:36]} 9. Rc1 {[%clk 0:03:01]}  Bd6 {[%clk 0:02:34]} 10. f3 {[%clk 0:03:01]}  Bh5 {[%clk 0:02:33]} 11. O-O {[%clk 0:03:01]}  O-O {[%clk 0:02:33]} 12. Na4 {[%clk 0:03:00]}  Bg6 {[%clk 0:02:27]} 13. Nc5 {[%clk 0:02:59]}  Bxc5 {[%clk 0:02:24]} 14. Rxc5 {[%clk 0:03:00]}  Qe7 {[%clk 0:02:23]} 15. Bg5 {[%clk 0:02:49]}  Rfc8 {[%clk 0:02:18]} 16. Bxg6 {[%clk 0:02:42]}  hxg6 {[%clk 0:02:19]} 17. Qb3 {[%clk 0:02:39]}  Qc7 {[%clk 0:02:02]} 18. Bxf6 {[%clk 0:02:39]}  gxf6 {[%clk 0:02:03]} 19. Rfc1 {[%clk 0:02:39]}  Kg7 {[%clk 0:02:00]} 20. h3 {[%clk 0:02:33]}  Qd7 {[%clk 0:01:53]} 21. Qb6 {[%clk 0:02:29]}  e5 {[%clk 0:01:23]} 22. dxe5 {[%clk 0:02:08]}  fxe5 {[%clk 0:01:24]} 23. Rd1 {[%clk 0:02:08]}  Ne7 {[%clk 0:01:24]} 24. Nc3 {[%clk 0:02:00]}  Qe6 {[%clk 0:01:06]} 25. Qb4 {[%clk 0:01:14]}  Rxc5 {[%clk 0:01:01]} 26. Qxc5 {[%clk 0:01:13]}  Rd8 {[%clk 0:01:02]} 27. Ne2 {[%clk 0:01:09]}  Rc8 {[%clk 0:01:01]} 28. Qb4 {[%clk 0:01:06]}  Rc2 {[%clk 0:01:00]} 29. Kf1 {[%clk 0:01:01]}  Nf5 {[%clk 0:00:59]} 30. Qb3 {[%clk 0:01:00]}  d4 {[%clk 0:00:55]} 31. exd4 {[%clk 0:00:52]}  Qxb3 {[%clk 0:00:55]} 32. axb3 {[%clk 0:00:50]}  Ne3+ {[%clk 0:00:56]} 33. Ke1 {[%clk 0:00:51]}  Nxg2+ {[%clk 0:00:47]} 34. Kf1 {[%clk 0:00:51]}  Ne3+ {[%clk 0:00:47]} 35. Ke1 {[%clk 0:00:52]}  Nxd1 {[%clk 0:00:47]} 36. Kxd1 {[%clk 0:00:53]}  Rxb2 {[%clk 0:00:47]} 0-1

[Event "January 9 Early 2024"]
[Site "https://www.chess.com"]
[Date "2024.01.11"]
[Round "2"]
[White "Burmakin, Evgeniy"]
[Black "Sjugirov, Sanan"]
[Result "0-1"]
[Board "74"]
[TimeControl "180+1"]
[WhiteFideId "4163729"]
[BlackFideId "4189302"]
[WhiteElo "2423"]
[BlackElo "2960"]
[WhiteTeam "RUS"]
[BlackTeam "HUN"]
[WhiteClock "0:00:04"]
[BlackClock "0:01:55"]

1. e4 {[%clk 0:03:00]}  c5 {[%clk 0:02:59]} 2. Nc3 {[%clk 0:03:00]}  d6 {[%clk 0:03:00]} 3. Nf3 {[%clk 0:02:59]}  a6 {[%clk 0:03:00]} 4. d4 {[%clk 0:03:00]}  cxd4 {[%clk 0:03:01]} 5. Nxd4 {[%clk 0:03:00]}  Nf6 {[%clk 0:03:01]} 6. Be3 {[%clk 0:02:59]}  e5 {[%clk 0:03:02]} 7. Nb3 {[%clk 0:02:58]}  Be7 {[%clk 0:03:02]} 8. f3 {[%clk 0:02:56]}  Be6 {[%clk 0:03:03]} 9. Qd2 {[%clk 0:02:56]}  O-O {[%clk 0:03:03]} 10. O-O-O {[%clk 0:02:56]}  b5 {[%clk 0:03:04]} 11. g4 {[%clk 0:02:55]}  Nbd7 {[%clk 0:03:04]} 12. g5 {[%clk 0:02:51]}  Nh5 {[%clk 0:03:05]} 13. Nd5 {[%clk 0:02:25]}  Bxd5 {[%clk 0:03:05]} 14. exd5 {[%clk 0:02:23]}  f5 {[%clk 0:03:05]} 15. gxf6 {[%clk 0:02:19]}  Bxf6 {[%clk 0:03:05]} 16. Bh3 {[%clk 0:02:06]}  Nf4 {[%clk 0:03:00]} 17. Be6+ {[%clk 0:01:54]}  Kh8 {[%clk 0:02:41]} 18. Nd4 {[%clk 0:01:39]}  exd4 {[%clk 0:02:23]} 19. Bxf4 {[%clk 0:01:39]}  Ne5 {[%clk 0:02:24]} 20. Bxe5 {[%clk 0:00:59]}  Bxe5 {[%clk 0:02:24]} 21. Kb1 {[%clk 0:00:59]}  Qh4 {[%clk 0:02:23]} 22. Rdf1 {[%clk 0:00:29]}  Rf4 {[%clk 0:02:21]} 23. h3 {[%clk 0:00:24]}  Raf8 {[%clk 0:02:21]} 24. Qd3 {[%clk 0:00:24]}  Qg3 {[%clk 0:02:18]} 25. a3 {[%clk 0:00:18]}  Rxf3 {[%clk 0:02:17]} 26. Rxf3 {[%clk 0:00:16]}  Rxf3 {[%clk 0:02:17]} 27. Rf1 {[%clk 0:00:14]}  Rxf1+ {[%clk 0:02:08]} 28. Qxf1 {[%clk 0:00:15]}  Bf4 {[%clk 0:02:08]} 29. Ka2 {[%clk 0:00:13]}  g6 {[%clk 0:02:07]} 30. Qe2 {[%clk 0:00:12]}  Kg7 {[%clk 0:02:06]} 31. Bd7 {[%clk 0:00:11]}  Be5 {[%clk 0:02:06]} 32. Qd2 {[%clk 0:00:10]}  h5 {[%clk 0:02:04]} 33. Be6 {[%clk 0:00:09]}  Qf3 {[%clk 0:02:01]} 34. Qa5 {[%clk 0:00:08]}  d3 {[%clk 0:02:00]} 35. Qc7+ {[%clk 0:00:07]}  Kh6 {[%clk 0:02:00]} 36. cxd3 {[%clk 0:00:08]}  Qxd3 {[%clk 0:02:01]} 37. Qf7 {[%clk 0:00:07]}  Qc4+ {[%clk 0:02:00]} 38. Kb1 {[%clk 0:00:06]}  Qe4+ {[%clk 0:01:58]} 39. Ka2 {[%clk 0:00:05]}  Qc4+ {[%clk 0:01:53]} 40. Kb1 {[%clk 0:00:04]}  Qd3+ {[%clk 0:01:53]} 41. Ka2 {[%clk 0:00:05]}  Qd2 {[%clk 0:01:54]} 42. Qf8+ {[%clk 0:00:04]}  Bg7 {[%clk 0:01:55]} 0-1

[Event "January 9 Early 2024"]
[Site "https://www.chess.com"]
[Date "2024.01.11"]
[Round "2"]
[White "Buscar, Michael"]
[Black "Kislinsky, Alexey"]
[Result "1-0"]
[Board "75"]
[TimeControl "180+1"]
[WhiteFideId "2603616"]
[BlackFideId "14108801"]
[WhiteElo "2409"]
[BlackElo "2750"]
[WhiteTeam "CAN"]
[BlackTeam "CZE"]
[WhiteClock "0:00:30"]
[BlackClock "0:00:51"]

1. d4 {[%clk 0:03:00]}  d5 {[%clk 0:02:57]} 2. c4 {[%clk 0:03:00]}  dxc4 {[%clk 0:02:57]} 3. e3 {[%clk 0:03:00]}  Nf6 {[%clk 0:02:54]} 4. Bxc4 {[%clk 0:02:59]}  e6 {[%clk 0:02:54]} 5. Nf3 {[%clk 0:02:59]}  a6 {[%clk 0:02:54]} 6. O-O {[%clk 0:02:59]}  b5 {[%clk 0:02:54]} 7. Be2 {[%clk 0:02:58]}  Bb7 {[%clk 0:02:54]} 8. a3 {[%clk 0:02:58]}  c5 {[%clk 0:02:48]} 9. dxc5 {[%clk 0:02:58]}  Qxd1 {[%clk 0:02:49]} 10. Rxd1 {[%clk 0:02:57]}  Bxc5 {[%clk 0:02:50]} 11. b4 {[%clk 0:02:57]}  Be7 {[%clk 0:02:50]} 12. Bb2 {[%clk 0:02:58]}  Nbd7 {[%clk 0:02:50]} 13. Nbd2 {[%clk 0:02:56]}  O-O {[%clk 0:02:49]} 14. Rac1 {[%clk 0:02:56]}  Rac8 {[%clk 0:02:49]} 15. Nb3 {[%clk 0:02:56]}  Bd5 {[%clk 0:02:45]} 16. Na5 {[%clk 0:02:32]}  Nb6 {[%clk 0:02:43]} 17. Nd4 {[%clk 0:02:32]}  Na4 {[%clk 0:02:42]} 18. Ba1 {[%clk 0:02:26]}  Nd7 {[%clk 0:02:23]} 19. Ndc6 {[%clk 0:02:06]}  Rce8 {[%clk 0:01:49]} 20. e4 {[%clk 0:01:44]}  Bxc6 {[%clk 0:01:44]} 21. Nxc6 {[%clk 0:01:44]}  Nf6 {[%clk 0:01:44]} 22. Nxe7+ {[%clk 0:01:43]}  Rxe7 {[%clk 0:01:45]} 23. f3 {[%clk 0:01:35]}  Nh5 {[%clk 0:01:26]} 24. Be5 {[%clk 0:01:30]}  Ra8 {[%clk 0:01:21]} 25. Rc6 {[%clk 0:01:19]}  f6 {[%clk 0:01:19]} 26. Bd6 {[%clk 0:01:19]}  Rd7 {[%clk 0:01:17]} 27. Rdc1 {[%clk 0:01:15]}  Rad8 {[%clk 0:01:09]} 28. Bc7 {[%clk 0:01:02]}  Rc8 {[%clk 0:01:07]} 29. g4 {[%clk 0:00:57]}  Rd2 {[%clk 0:01:03]} 30. Bf1 {[%clk 0:00:48]}  Rxc7 {[%clk 0:01:01]} 31. Rxc7 {[%clk 0:00:46]}  Nf4 {[%clk 0:01:02]} 32. Re7 {[%clk 0:00:40]}  h5 {[%clk 0:00:54]} 33. Rcc7 {[%clk 0:00:38]}  g5 {[%clk 0:00:51]} 34. Re8# {[%clk 0:00:30]} 1-0

[Event "January 9 Early 2024"]
[Site "https://www.chess.com"]
[Date "2024.01.11"]
[Round "2"]
[White "Tifferet, Shakked"]
[Black "Kornyukov, Alexey"]
[Result "0-1"]
[Board "76"]
[TimeControl "180+1"]
[WhiteFideId "2811529"]
[BlackFideId "4150457"]
[WhiteElo "2492"]
[BlackElo "2281"]
[WhiteTeam "ISR"]
[BlackTeam "RUS"]
[WhiteClock "0:00:18"]
[BlackClock "0:00:57"]

1. g3 {[%clk 0:03:00]}  d5 {[%clk 0:02:56]} 2. Bg2 {[%clk 0:03:00]}  Nf6 {[%clk 0:02:56]} 3. f4 {[%clk 0:03:00]}  c6 {[%clk 0:02:56]} 4. Nf3 {[%clk 0:02:59]}  Bg4 {[%clk 0:02:57]} 5. O-O {[%clk 0:02:57]}  e6 {[%clk 0:02:54]} 6. d3 {[%clk 0:02:55]}  Nbd7 {[%clk 0:02:50]} 7. Nbd2 {[%clk 0:02:51]}  Bd6 {[%clk 0:02:36]} 8. Qe1 {[%clk 0:02:43]}  O-O {[%clk 0:02:34]} 9. b3 {[%clk 0:02:40]}  Re8 {[%clk 0:02:32]} 10. Bb2 {[%clk 0:02:39]}  e5 {[%clk 0:02:29]} 11. fxe5 {[%clk 0:02:34]}  Nxe5 {[%clk 0:02:27]} 12. Qf2 {[%clk 0:02:28]}  Bxf3 {[%clk 0:02:20]} 13. exf3 {[%clk 0:02:28]}  Ng6 {[%clk 0:02:17]} 14. Rae1 {[%clk 0:02:26]}  Rxe1 {[%clk 0:02:10]} 15. Rxe1 {[%clk 0:02:25]}  Qd7 {[%clk 0:02:02]} 16. Re2 {[%clk 0:02:15]}  Re8 {[%clk 0:01:58]} 17. Rxe8+ {[%clk 0:02:07]}  Qxe8 {[%clk 0:01:56]} 18. Qxa7 {[%clk 0:02:07]}  Qe1+ {[%clk 0:01:44]} 19. Nf1 {[%clk 0:02:06]}  Qb4 {[%clk 0:01:28]} 20. d4 {[%clk 0:01:39]}  h5 {[%clk 0:01:16]} 21. Qa8+ {[%clk 0:01:25]}  Kh7 {[%clk 0:01:15]} 22. Qc8 {[%clk 0:01:22]}  c5 {[%clk 0:01:12]} 23. dxc5 {[%clk 0:01:18]}  Bxc5+ {[%clk 0:01:10]} 24. Kh1 {[%clk 0:01:18]}  h4 {[%clk 0:01:06]} 25. Bxf6 {[%clk 0:01:16]}  gxf6 {[%clk 0:01:06]} 26. Qd7 {[%clk 0:01:12]}  Qd4 {[%clk 0:01:00]} 27. Qxf7+ {[%clk 0:01:11]}  Kh6 {[%clk 0:00:59]} 28. h3 {[%clk 0:00:18]}  Qg1# {[%clk 0:00:57]} 0-1

[Event "January 9 Early 2024"]
[Site "https://www.chess.com"]
[Date "2024.01.11"]
[Round "2"]
[White "Chigaev, Maksim"]
[Black "Antal, Gergely"]
[Result "1-0"]
[Board "78"]
[TimeControl "180+1"]
[WhiteFideId "4108116"]
[BlackFideId "717312"]
[WhiteElo "2956"]
[BlackElo "2630"]
[WhiteTeam "ESP"]
[BlackTeam "HUN"]
[WhiteClock "0:00:50"]
[BlackClock "0:00:13"]

1. c4 {[%clk 0:03:00]}  f5 {[%clk 0:02:57]} 2. e4 {[%clk 0:02:54]}  fxe4 {[%clk 0:02:53]} 3. d3 {[%clk 0:02:54]}  exd3 {[%clk 0:02:39]} 4. Bxd3 {[%clk 0:02:53]}  Nf6 {[%clk 0:02:39]} 5. Nc3 {[%clk 0:02:49]}  d6 {[%clk 0:02:39]} 6. Nf3 {[%clk 0:02:45]}  e5 {[%clk 0:02:39]} 7. Bg5 {[%clk 0:02:44]}  Be7 {[%clk 0:02:39]} 8. Qc2 {[%clk 0:02:43]}  Bg4 {[%clk 0:02:31]} 9. Bxf6 {[%clk 0:02:24]}  Bxf6 {[%clk 0:02:30]} 10. Bxh7 {[%clk 0:02:21]}  Bxf3 {[%clk 0:02:15]} 11. gxf3 {[%clk 0:02:20]}  Nc6 {[%clk 0:02:15]} 12. O-O-O {[%clk 0:02:10]}  Kf8 {[%clk 0:01:52]} 13. h4 {[%clk 0:02:03]}  Nd4 {[%clk 0:01:46]} 14. Qd3 {[%clk 0:01:55]}  Qd7 {[%clk 0:01:10]} 15. h5 {[%clk 0:01:42]}  Bg5+ {[%clk 0:00:39]} 16. Kb1 {[%clk 0:01:41]}  Bh6 {[%clk 0:00:40]} 17. f4 {[%clk 0:01:18]}  Bxf4 {[%clk 0:00:37]} 18. Nd5 {[%clk 0:01:19]}  Bh6 {[%clk 0:00:30]} 19. f4 {[%clk 0:01:15]}  g5 {[%clk 0:00:14]} 20. hxg6 {[%clk 0:01:07]}  Bg7 {[%clk 0:00:15]} 21. fxe5 {[%clk 0:01:06]}  dxe5 {[%clk 0:00:14]} 22. Qe4 {[%clk 0:00:51]}  Ke8 {[%clk 0:00:12]} 23. Rxd4 {[%clk 0:00:51]}  c6 {[%clk 0:00:12]} 24. Nf6+ {[%clk 0:00:51]}  Bxf6 {[%clk 0:00:12]} 25. Rxd7 {[%clk 0:00:52]}  Kxd7 {[%clk 0:00:13]} 26. g7 {[%clk 0:00:50]} 1-0

[Event "January 9 Early 2024"]
[Site "https://www.chess.com"]
[Date "2024.01.11"]
[Round "2"]
[White "Llari, Marc"]
[Black "Kvaloy, Aksel Bu"]
[Result "0-1"]
[Board "79"]
[TimeControl "180+1"]
[WhiteFideId "651044269"]
[BlackFideId "1528815"]
[WhiteElo "2302"]
[BlackElo "2720"]
[WhiteTeam "FRA"]
[BlackTeam "NOR"]
[WhiteClock "0:00:20"]
[BlackClock "0:01:22"]

1. d4 {[%clk 0:03:00]}  Nf6 {[%clk 0:02:59]} 2. Nf3 {[%clk 0:02:59]}  e6 {[%clk 0:02:59]} 3. Bg5 {[%clk 0:02:57]}  d5 {[%clk 0:02:51]} 4. e3 {[%clk 0:02:57]}  Be7 {[%clk 0:02:51]} 5. Bd3 {[%clk 0:02:57]}  h6 {[%clk 0:02:45]} 6. Bh4 {[%clk 0:02:56]}  O-O {[%clk 0:02:45]} 7. O-O {[%clk 0:02:56]}  c5 {[%clk 0:02:45]} 8. c3 {[%clk 0:02:56]}  Nbd7 {[%clk 0:02:45]} 9. Nbd2 {[%clk 0:02:56]}  Qc7 {[%clk 0:02:40]} 10. Bg3 {[%clk 0:02:54]}  Bd6 {[%clk 0:02:40]} 11. Qe2 {[%clk 0:02:52]}  e5 {[%clk 0:02:40]} 12. dxe5 {[%clk 0:02:51]}  Nxe5 {[%clk 0:02:40]} 13. Bxe5 {[%clk 0:02:50]}  Bxe5 {[%clk 0:02:41]} 14. Nxe5 {[%clk 0:02:51]}  Qxe5 {[%clk 0:02:41]} 15. Nf3 {[%clk 0:02:52]}  Qh5 {[%clk 0:02:39]} 16. h3 {[%clk 0:02:45]}  Re8 {[%clk 0:02:24]} 17. Rad1 {[%clk 0:02:39]}  Be6 {[%clk 0:02:22]} 18. Rfe1 {[%clk 0:02:37]}  Rad8 {[%clk 0:02:22]} 19. a3 {[%clk 0:02:31]}  Ne4 {[%clk 0:02:20]} 20. Nd2 {[%clk 0:02:27]}  Qg6 {[%clk 0:02:08]} 21. f3 {[%clk 0:02:06]}  c4 {[%clk 0:01:59]} 22. Bb1 {[%clk 0:01:57]}  Bxh3 {[%clk 0:01:45]} 23. fxe4 {[%clk 0:01:54]}  Bg4 {[%clk 0:01:46]} 24. Qf1 {[%clk 0:01:06]}  Bxd1 {[%clk 0:01:44]} 25. Rxd1 {[%clk 0:01:07]}  dxe4 {[%clk 0:01:44]} 26. Nxc4 {[%clk 0:00:46]}  Rxd1 {[%clk 0:01:40]} 27. Qxd1 {[%clk 0:00:47]}  Qg5 {[%clk 0:01:33]} 28. Qe2 {[%clk 0:00:35]}  f5 {[%clk 0:01:29]} 29. Ba2 {[%clk 0:00:32]}  Kh7 {[%clk 0:01:29]} 30. Nd6 {[%clk 0:00:22]}  Re7 {[%clk 0:01:24]} 31. Qf2 {[%clk 0:00:19]}  Rd7 {[%clk 0:01:22]} 32. Qxf5+ {[%clk 0:00:18]}  Qxf5 {[%clk 0:01:22]} 33. Nxf5 {[%clk 0:00:19]}  Rd2 {[%clk 0:01:23]} 34. Bb1 {[%clk 0:00:18]}  Rd1+ {[%clk 0:01:21]} 35. Kf2 {[%clk 0:00:18]}  Rxb1 {[%clk 0:01:22]} 36. b4 {[%clk 0:00:18]}  Rc1 {[%clk 0:01:21]} 37. Kg3 {[%clk 0:00:18]}  Rxc3 {[%clk 0:01:22]} 38. Kf4 {[%clk 0:00:19]}  Rxa3 {[%clk 0:01:21]} 39. Nd6 {[%clk 0:00:19]}  Rb3 {[%clk 0:01:20]} 40. Nxb7 {[%clk 0:00:19]}  Rxb4 {[%clk 0:01:21]} 41. Nc5 {[%clk 0:00:20]}  a5 {[%clk 0:01:21]} 42. Nxe4 {[%clk 0:00:20]}  a4 {[%clk 0:01:22]} 0-1

[Event "January 9 Early 2024"]
[Site "https://www.chess.com"]
[Date "2024.01.11"]
[Round "2"]
[White "Glashausser, Sho"]
[Black "Guerrero Olmos, Sergio"]
[Result "0-1"]
[Board "81"]
[TimeControl "180+1"]
[WhiteFideId "30908329"]
[BlackFideId "2257238"]
[WhiteElo "2158"]
[BlackElo "2463"]
[WhiteTeam "USA"]
[BlackTeam "ESP"]
[WhiteClock "0:00:01"]
[BlackClock "0:01:20"]

1. Nf3 {[%clk 0:03:00]}  d5 {[%clk 0:02:59]} 2. g3 {[%clk 0:03:00]}  Nf6 {[%clk 0:02:58]} 3. Bg2 {[%clk 0:03:00]}  Bf5 {[%clk 0:02:59]} 4. O-O {[%clk 0:03:00]}  e6 {[%clk 0:02:57]} 5. d3 {[%clk 0:02:47]}  h6 {[%clk 0:02:56]} 6. c4 {[%clk 0:02:44]}  c6 {[%clk 0:02:55]} 7. Qb3 {[%clk 0:02:33]}  Qb6 {[%clk 0:02:54]} 8. Be3 {[%clk 0:02:31]}  Qa6 {[%clk 0:02:53]} 9. cxd5 {[%clk 0:01:41]}  exd5 {[%clk 0:02:49]} 10. Nc3 {[%clk 0:01:40]}  Nbd7 {[%clk 0:02:49]} 11. Na4 {[%clk 0:01:38]}  Bd6 {[%clk 0:02:38]} 12. Rfc1 {[%clk 0:01:35]}  O-O {[%clk 0:02:37]} 13. h3 {[%clk 0:01:21]}  Rfe8 {[%clk 0:02:35]} 14. Rc2 {[%clk 0:01:20]}  Bxg3 {[%clk 0:02:29]} 15. Nd4 {[%clk 0:00:38]}  Bg6 {[%clk 0:02:24]} 16. Bxh6 {[%clk 0:00:18]}  Bxf2+ {[%clk 0:02:24]} 17. Kxf2 {[%clk 0:00:19]}  gxh6 {[%clk 0:02:24]} 18. Bf3 {[%clk 0:00:18]}  Re5 {[%clk 0:02:18]} 19. Rg1 {[%clk 0:00:18]}  Rae8 {[%clk 0:02:14]} 20. h4 {[%clk 0:00:18]}  h5 {[%clk 0:02:02]} 21. Nc3 {[%clk 0:00:12]}  Qb6 {[%clk 0:02:00]} 22. Qxb6 {[%clk 0:00:08]}  axb6 {[%clk 0:02:00]} 23. Na4 {[%clk 0:00:04]}  b5 {[%clk 0:01:57]} 24. Nc5 {[%clk 0:00:04]}  Nxc5 {[%clk 0:01:56]} 25. Rxc5 {[%clk 0:00:05]}  Nd7 {[%clk 0:01:56]} 26. Rc2 {[%clk 0:00:05]}  Kf8 {[%clk 0:01:55]} 27. a3 {[%clk 0:00:03]}  Ra8 {[%clk 0:01:41]} 28. Nb3 {[%clk 0:00:03]}  Ra4 {[%clk 0:01:38]} 29. Rh1 {[%clk 0:00:02]}  Rf5 {[%clk 0:01:28]} 30. Kg3 {[%clk 0:00:02]}  Ne5 {[%clk 0:01:26]} 31. Nc5 {[%clk 0:00:02]}  Nxf3 {[%clk 0:01:19]} 32. Nxa4 {[%clk 0:00:01]}  Nd4 {[%clk 0:01:20]} 0-1

[Event "January 9 Early 2024"]
[Site "https://www.chess.com"]
[Date "2024.01.11"]
[Round "2"]
[White "Rojas Salas, Steven"]
[Black "Popov, Konstantin"]
[Result "0-1"]
[Board "84"]
[TimeControl "180+1"]
[WhiteFideId "3819434"]
[BlackFideId "34137910"]
[WhiteElo "2585"]
[BlackElo "2907"]
[WhiteTeam "PER"]
[BlackTeam "FID"]
[WhiteClock "0:00:44"]
[BlackClock "0:01:01"]

1. d4 {[%clk 0:03:00]}  Nf6 {[%clk 0:03:00]} 2. c4 {[%clk 0:03:01]}  e6 {[%clk 0:03:00]} 3. Nc3 {[%clk 0:02:47]}  Bb4 {[%clk 0:02:59]} 4. e3 {[%clk 0:02:45]}  O-O {[%clk 0:02:59]} 5. Bd3 {[%clk 0:02:45]}  c5 {[%clk 0:02:58]} 6. Nf3 {[%clk 0:02:41]}  d5 {[%clk 0:02:58]} 7. cxd5 {[%clk 0:02:39]}  exd5 {[%clk 0:02:58]} 8. O-O {[%clk 0:02:35]}  Nc6 {[%clk 0:02:56]} 9. dxc5 {[%clk 0:02:23]}  Bxc5 {[%clk 0:02:57]} 10. b3 {[%clk 0:02:23]}  a6 {[%clk 0:02:57]} 11. Bb2 {[%clk 0:02:22]}  Qd6 {[%clk 0:02:56]} 12. Rc1 {[%clk 0:02:17]}  Bg4 {[%clk 0:02:55]} 13. h3 {[%clk 0:02:09]}  Bh5 {[%clk 0:02:54]} 14. Bf5 {[%clk 0:02:01]}  Rad8 {[%clk 0:02:51]} 15. Ne2 {[%clk 0:01:41]}  Bxf3 {[%clk 0:02:43]} 16. gxf3 {[%clk 0:01:42]}  Ba7 {[%clk 0:02:43]} 17. Ng3 {[%clk 0:01:39]}  Bxe3 {[%clk 0:02:38]} 18. Kg2 {[%clk 0:01:34]}  Bxc1 {[%clk 0:02:37]} 19. Qxc1 {[%clk 0:01:34]}  d4 {[%clk 0:02:35]} 20. Rd1 {[%clk 0:01:32]}  g6 {[%clk 0:02:31]} 21. Bb1 {[%clk 0:01:31]}  Rfe8 {[%clk 0:02:29]} 22. Qd2 {[%clk 0:01:26]}  Nd5 {[%clk 0:02:19]} 23. Ne4 {[%clk 0:01:22]}  Nf4+ {[%clk 0:02:19]} 24. Kf1 {[%clk 0:01:20]}  Qe5 {[%clk 0:02:17]} 25. Bc1 {[%clk 0:01:12]}  Nd5 {[%clk 0:01:51]} 26. Qh6 {[%clk 0:01:11]}  f6 {[%clk 0:01:34]} 27. Ng3 {[%clk 0:01:01]}  Nce7 {[%clk 0:01:22]} 28. Re1 {[%clk 0:00:58]}  Qxe1+ {[%clk 0:01:20]} 29. Kxe1 {[%clk 0:00:54]}  Nf5+ {[%clk 0:01:20]} 30. Kf1 {[%clk 0:00:55]}  Nxh6 {[%clk 0:01:20]} 31. Bxh6 {[%clk 0:00:55]}  f5 {[%clk 0:01:15]} 32. Bd3 {[%clk 0:00:54]}  b5 {[%clk 0:01:15]} 33. a4 {[%clk 0:00:52]}  Nb4 {[%clk 0:01:15]} 34. Be2 {[%clk 0:00:53]}  d3 {[%clk 0:01:16]} 35. Bd1 {[%clk 0:00:53]}  d2 {[%clk 0:01:11]} 36. Ne2 {[%clk 0:00:51]}  Nd3 {[%clk 0:01:09]} 37. axb5 {[%clk 0:00:49]}  axb5 {[%clk 0:01:09]} 38. b4 {[%clk 0:00:49]}  Nb2 {[%clk 0:01:08]} 39. Bb3+ {[%clk 0:00:49]}  Nc4 {[%clk 0:01:06]} 40. Bd1 {[%clk 0:00:48]}  Rd3 {[%clk 0:01:04]} 41. Nf4 {[%clk 0:00:46]}  Re1+ {[%clk 0:01:03]} 42. Kg2 {[%clk 0:00:45]}  Rxd1 {[%clk 0:01:00]} 43. Nxd3 {[%clk 0:00:46]}  Rb1 {[%clk 0:01:00]} 44. Bxd2 {[%clk 0:00:46]}  Nxd2 {[%clk 0:01:01]} 45. h4 {[%clk 0:00:44]}  Rb3 {[%clk 0:01:01]} 0-1